fUST/lending_fUST_20250406
["ID","MTS","AMOUNT","RATE_DAILY","PERIOD"]
[357190817,1743877845835,-208.495409,0.00020441,2]
[357190818,1743877845846,-1125.103967,0.00020441,2]
[357190819,1743877845859,-1125.103967,0.00020441,2]
[357190820,1743877845873,-159.407534,0.00020441,2]
[357190821,1743877845882,-159.407534,0.00020441,2]
[357190822,1743877845892,-500.0,0.00020441,2]
[357190823,1743877845902,-500.0,0.00020441,2]
[357190824,1743877845911,-500.0,0.00020442,2]
[357190825,1743877845921,-500.0,0.00020442,2]
[357190826,1743877845930,-457.8,0.00020442,2]
[357190827,1743877845940,-1018.99,0.00020442,2]
[357190828,1743877845950,-211.18705403,0.00020614,2]
[357190829,1743877845959,-151.0,0.00020714,2]
[357190830,1743877845969,-173.566259,0.00020714,2]
[357190831,1743877845978,-151.0,0.00020714,2]
[357190832,1743877845988,-173.566259,0.00020714,2]
[357190833,1743877845998,-1332.461852,0.00020714,2]
[357190834,1743877846008,-1332.461852,0.00020714,2]
[357190836,1743877846017,-151.0,0.00020714,2]
[357190837,1743877846027,-530.550013,0.00020714,2]
[357190838,1743877846036,-151.0,0.00020714,2]
[357190839,1743877846046,-530.550013,0.00020714,2]
[357190840,1743877846055,-151.0,0.00020714,2]
[357190841,1743877846065,-500.0,0.00020715,2]
[357190842,1743877846075,-500.0,0.00020715,2]
[357190843,1743877846092,-325.0,0.00020716,2]
[357190845,1743877846105,-500.0,0.00020716,2]
[357190847,1743877846115,-1018.99,0.00020716,2]
[357190848,1743877846125,-467.751626,0.00020716,2]
[357190849,1743877846135,-467.751626,0.00020716,2]
[357190850,1743877846145,-151.0,0.00020988,2]
[357190851,1743877846156,-500.0,0.00020989,2]
[357190852,1743877846166,-427.6,0.00020989,2]
[357190853,1743877846176,-500.0,0.0002099,2]
[357190854,1743877846186,-1018.99,0.0002099,2]
[357190855,1743877846196,-840.31839671,0.00021072,3]
[357190859,1743877846679,-500.0,0.00019071,2]
[357190860,1743877846689,-550.62,0.00019336,3]
[357190861,1743877846700,-186.81049552,0.00019345,2]
[357190862,1743877846733,-313.18950448,0.00019345,2]
[357190863,1743877846745,-500.0,0.00019619,2]
[357190864,1743877846755,-500.0,0.00019893,2]
[357190865,1743877846766,-500.0,0.00020167,2]
[357190866,1743877846776,-500.0,0.00020441,2]
[357190867,1743877846786,-500.0,0.00020715,2]
[357190868,1743877846796,-421.79195384,0.00020989,2]
[357190883,1743877861900,-200.0,0.000182,2]
[357190889,1743878756135,-295.25780128,0.000181,2]
[357190890,1743878756156,-291.25826706,0.00018148,2]
[357190891,1743878756178,-500.0,0.00018249,2]
[357190892,1743878756198,-500.0,0.00018249,2]
[357190893,1743878756218,-500.0,0.00018249,2]
[357190894,1743878756238,-500.0,0.00018249,2]
[357190895,1743878756262,-500.0,0.00018249,2]
[357190896,1743878756285,-614.48,0.00018249,2]
[357190897,1743878756306,-500.0,0.00018249,2]
[357190898,1743878756327,-500.0,0.00018249,2]
[357190899,1743878756348,-500.0,0.00018249,2]
[357190900,1743878756369,-390.45,0.00018523,2]
[357190901,1743878756391,-9206.1434546,0.0001872,2]
[357190902,1743878756413,-500.0,0.00019343,2]
[357190903,1743878756444,-394.08045183,0.00019343,2]
[357190904,1743878756467,-500.0,0.00019343,2]
[357190905,1743878756490,-500.0,0.00019343,2]
[357190906,1743878756511,-500.0,0.00019343,2]
[357190907,1743878756532,-500.0,0.00019343,2]
[357190908,1743878756554,-500.0,0.00019343,2]
[357190909,1743878756576,-500.0,0.00019343,2]
[357190910,1743878756597,-500.0,0.00019343,2]
[357190911,1743878756617,-159.13861614,0.00019343,2]
[357190912,1743878756639,-273.12202375,0.00019343,2]
[357190913,1743878756660,-500.0,0.00019343,2]
[357190914,1743878756681,-500.0,0.00019343,2]
[357190915,1743878756703,-500.0,0.00019343,2]
[357190916,1743878756724,-500.0,0.00019343,2]
[357190917,1743878756745,-500.0,0.00019343,2]
[357190918,1743878756767,-500.0,0.00019343,2]
[357190919,1743878756787,-1347.92742224,0.00019517,2]
[357190920,1743878756807,-313.24645679,0.00019616,2]
[357190921,1743878756831,-500.0,0.00019616,2]
[357190922,1743878756853,-500.0,0.00019616,2]
[357190923,1743878756877,-500.0,0.00019616,2]
[357190924,1743878756900,-500.0,0.00019616,2]
[357190925,1743878756923,-500.0,0.00019616,2]
[357190926,1743878756946,-500.0,0.00019617,2]
[357190927,1743878756967,-500.0,0.00019617,2]
[357190928,1743878756992,-500.0,0.00019617,2]
[357190929,1743878757014,-500.0,0.00019617,2]
[357190930,1743878757036,-500.0,0.00019617,2]
[357190931,1743878757060,-500.0,0.00019617,2]
[357190932,1743878757085,-500.0,0.00019617,2]
[357190933,1743878757106,-226.06558823,0.00019617,2]
[357190934,1743878757126,-500.0,0.00019617,2]
[357190935,1743878757148,-500.0,0.00019617,2]
[357190936,1743878757169,-500.0,0.00019617,2]
[357190937,1743878757190,-500.0,0.00019617,2]
[357190938,1743878757211,-500.0,0.00019617,2]
[357190939,1743878757232,-500.0,0.00019617,2]
[357190940,1743878757254,-500.0,0.0001989,2]
[357190941,1743878757276,-500.0,0.0001989,2]
[357190942,1743878757300,-500.0,0.0001989,2]
[357190943,1743878757322,-500.0,0.0001989,2]
[357190944,1743878757345,-500.0,0.0001989,2]
[357190945,1743878757369,-500.0,0.00019891,2]
[357190946,1743878757390,-500.0,0.00019891,2]
[357190947,1743878757411,-500.0,0.00019891,2]
[357190948,1743878757432,-500.0,0.00019891,2]
[357190949,1743878757456,-500.0,0.00019891,2]
[357190950,1743878757479,-500.0,0.00019891,2]
[357190951,1743878757503,-500.0,0.00019891,2]
[357190952,1743878757527,-500.0,0.00019891,2]
[357190953,1743878757549,-500.0,0.00019891,2]
[357190954,1743878757570,-500.0,0.00019891,2]
[357190955,1743878757592,-500.0,0.00019891,2]
[357190956,1743878757615,-151.0,0.00020154,2]
[357190957,1743878757635,-200.0,0.00020154,2]
[357190958,1743878757658,-500.0,0.00020164,2]
[357190959,1743878757681,-500.0,0.00020164,2]
[357190960,1743878757705,-500.0,0.00020164,2]
[357190961,1743878757729,-500.0,0.00020164,2]
[357190962,1743878757752,-500.0,0.00020164,2]
[357190963,1743878757775,-500.0,0.00020165,2]
[357190964,1743878757798,-500.0,0.00020165,2]
[357190965,1743878757823,-500.0,0.00020165,2]
[357190966,1743878757848,-500.0,0.00020165,2]
[357190967,1743878757871,-464.92038765,0.00020165,2]
[357190968,1743878757892,-437.83,0.00020165,2]
[357190969,1743878757916,-500.0,0.00020165,2]
[357190970,1743878757938,-825.16,0.00020166,2]
[357190971,1743878757960,-500.0,0.00020166,2]
[357190972,1743878757982,-185.23646786,0.00020339,2]
[357190973,1743878758008,-500.0,0.00020438,2]
[357190974,1743878758030,-500.0,0.00020438,2]
[357190975,1743878758053,-500.0,0.00020438,2]
[357190976,1743878758075,-500.0,0.00020438,2]
[357190977,1743878758099,-500.0,0.00020438,2]
[357190978,1743878758119,-500.0,0.00020439,2]
[357190979,1743878758140,-500.0,0.00020439,2]
[357190980,1743878758162,-254.50710762,0.00020439,2]
[357190996,1743879031812,-229.7090834,0.00019446,2]
[357190997,1743879031822,-300.0,0.00019615,2]
[357190998,1743879031832,-2545.81118932,0.00019616,2]
[357190999,1743879031842,-500.0,0.00019616,2]
[357191000,1743879031852,-500.0,0.00019616,2]
[357191001,1743879031863,-500.0,0.00019616,2]
[357191002,1743879031872,-500.0,0.00019616,2]
[357191003,1743879031882,-500.0,0.00019616,2]
[357191004,1743879031892,-500.0,0.00019616,2]
[357191005,1743879031902,-500.0,0.00019616,2]
[357191006,1743879031916,-500.0,0.00019616,2]
[357191007,1743879031926,-500.0,0.00019616,2]
[357191008,1743879031935,-642.36,0.00019616,2]
[357191009,1743879031946,-500.0,0.00019616,2]
[357191010,1743879031957,-500.0,0.00019616,2]
[357191011,1743879031968,-500.0,0.00019616,2]
[357191012,1743879031979,-500.0,0.0001989,2]
[357191013,1743879031988,-500.0,0.0001989,2]
[357191014,1743879031998,-500.0,0.0001989,2]
[357191015,1743879032008,-602.55,0.0001989,2]
[357191016,1743879032018,-500.0,0.0001989,2]
[357191017,1743879032028,-500.0,0.0001989,2]
[357191018,1743879032039,-500.0,0.0001989,2]
[357191019,1743879032048,-500.0,0.0001989,2]
[357191020,1743879032058,-500.0,0.0001989,2]
[357191021,1743879032068,-642.36,0.0001989,2]
[357191022,1743879032079,-500.0,0.0001989,2]
[357191023,1743879032088,-500.0,0.0001989,2]
[357191024,1743879032098,-500.0,0.0001989,2]
[357191025,1743879032108,-500.0,0.00020164,2]
[357191026,1743879032117,-500.0,0.00020164,2]
[357191027,1743879032127,-500.0,0.00020164,2]
[357191028,1743879032136,-500.0,0.00020164,2]
[357191029,1743879032146,-500.0,0.00020164,2]
[357191030,1743879032155,-500.0,0.00020164,2]
[357191031,1743879032164,-500.0,0.00020164,2]
[357191032,1743879032174,-500.0,0.00020164,2]
[357191033,1743879032183,-642.36,0.00020164,2]
[357191034,1743879032193,-500.0,0.00020164,2]
[357191035,1743879032205,-500.0,0.00020164,2]
[357191036,1743879032214,-500.0,0.00020164,2]
[357191037,1743879032224,-1379.73528908,0.00020339,2]
[357191038,1743879032234,-500.0,0.00020437,2]
[357191039,1743879032244,-500.0,0.00020437,2]
[357191040,1743879032253,-500.0,0.00020437,2]
[357191041,1743879032263,-500.0,0.00020437,2]
[357191042,1743879032273,-500.0,0.00020437,2]
[357191043,1743879032284,-500.0,0.00020438,2]
[357191044,1743879032294,-500.0,0.00020438,2]
[357191045,1743879032304,-500.0,0.00020438,2]
[357191046,1743879032314,-500.0,0.00020438,2]
[357191047,1743879032324,-500.0,0.00020438,2]
[357191048,1743879032334,-500.0,0.00020438,2]
[357191049,1743879032344,-500.0,0.00020438,2]
[357191050,1743879032354,-500.0,0.00020438,2]
[357191051,1743879032364,-642.36,0.00020438,2]
[357191052,1743879032374,-500.0,0.00020438,2]
[357191053,1743879032383,-500.0,0.00020438,2]
[357191054,1743879032393,-500.0,0.00020438,2]
[357191055,1743879032403,-245.49289238,0.00020439,2]
[357191056,1743879032413,-500.0,0.00020439,2]
[357191057,1743879032424,-500.0,0.00020439,2]
[357191058,1743879032434,-500.0,0.00020439,2]
[357191059,1743879032444,-1341.21,0.00020439,2]
[357191060,1743879032454,-500.0,0.00020439,2]
[357191061,1743879032465,-500.0,0.00020439,2]
[357191062,1743879032475,-500.0,0.00020439,2]
[357191063,1743879032485,-500.0,0.00020439,2]
[357191064,1743879032495,-500.0,0.00020439,2]
[357191065,1743879032505,-500.0,0.00020439,2]
[357191066,1743879032514,-609.66068668,0.00020439,2]
[357191067,1743879032524,-500.0,0.00020439,2]
[357191068,1743879032533,-500.0,0.00020439,2]
[357191069,1743879032542,-500.0,0.00020439,2]
[357191070,1743879032552,-500.0,0.00020439,2]
[357191071,1743879032562,-500.0,0.00020439,2]
[357191072,1743879032571,-228.7859752,0.00020612,2]
[357191073,1743879032581,-500.0,0.00020711,2]
[357191074,1743879032590,-500.0,0.00020711,2]
[357191075,1743879032600,-500.0,0.00020711,2]
[357191076,1743879032609,-500.0,0.00020711,2]
[357191077,1743879032619,-732.99,0.00020711,2]
[357191078,1743879032629,-500.0,0.00020711,2]
[357191079,1743879032639,-500.0,0.00020711,2]
[357191080,1743879032648,-500.0,0.00020711,2]
[357191081,1743879032657,-192.82609796,0.00020711,2]
[357191082,1743879032667,-500.0,0.00020712,2]
[357191083,1743879032676,-500.0,0.00020712,2]
[357191084,1743879032685,-500.0,0.00020712,2]
[357191085,1743879032695,-500.0,0.00020712,2]
[357191086,1743879032705,-500.0,0.00020712,2]
[357191087,1743879032714,-500.0,0.00020712,2]
[357191088,1743879032724,-500.0,0.00020712,2]
[357191089,1743879032733,-500.0,0.00020712,2]
[357191090,1743879032743,-642.36,0.00020712,2]
[357191091,1743879032752,-500.0,0.00020712,2]
[357191092,1743879032761,-500.0,0.00020712,2]
[357191093,1743879032771,-500.0,0.00020712,2]
[357191094,1743879032780,-500.0,0.00020713,2]
[357191095,1743879032789,-380.09684416,0.00020713,2]
[357191096,1743879032799,-500.0,0.00020713,2]
[357191097,1743879032809,-500.0,0.00020713,2]
[357191098,1743879032818,-500.0,0.00020713,2]
[357191099,1743879032828,-500.0,0.00020713,2]
[357191100,1743879032838,-1341.21,0.00020713,2]
[357191101,1743879032847,-500.0,0.00020713,2]
[357191102,1743879032857,-500.0,0.00020713,2]
[357191103,1743879032866,-500.0,0.00020713,2]
[357191104,1743879032875,-500.0,0.00020713,2]
[357191105,1743879032889,-500.0,0.00020713,2]
[357191106,1743879032901,-500.0,0.00020713,2]
[357191107,1743879032918,-500.0,0.00020713,2]
[357191108,1743879032930,-500.0,0.00020713,2]
[357191109,1743879032942,-500.0,0.00020713,2]
[357191110,1743879032954,-500.0,0.00020713,2]
[357191111,1743879032964,-500.0,0.00020714,2]
[357191112,1743879032974,-228.7859752,0.00020801,2]
[357191113,1743879032985,-1992.56630166,0.000209,3]
[357191114,1743879032997,-151.0,0.00020974,2]
[357191115,1743879033010,-200.0,0.00020974,2]
[357191116,1743879033020,-500.0,0.00020985,2]
[357191117,1743879033031,-500.0,0.00020985,2]
[357191118,1743879033043,-500.0,0.00020985,2]
[357191119,1743879033055,-500.0,0.00020985,2]
[357191120,1743879033067,-732.99,0.00020985,2]
[357191121,1743879033079,-500.0,0.00020985,2]
[357191122,1743879033091,-500.0,0.00020985,2]
[357191123,1743879033114,-500.0,0.00020985,2]
[357191124,1743879033131,-500.0,0.00020986,2]
[357191125,1743879033146,-368.37,0.00020986,2]
[357191126,1743879033160,-500.0,0.00020986,2]
[357191127,1743879033175,-642.36,0.00020986,2]
[357191128,1743879033189,-538.40022096,0.00020986,2]
[357191129,1743879033202,-500.0,0.00020986,2]
[357191130,1743879033214,-500.0,0.00020986,2]
[357191131,1743879033228,-500.0,0.00020987,2]
[357191132,1743879033245,-500.0,0.00020987,2]
[357191133,1743879033262,-2637.0,0.00020987,2]
[357191134,1743879033276,-1341.21,0.00020987,2]
[357191135,1743879033289,-500.0,0.00020987,2]
[357191136,1743879033302,-500.0,0.00020987,2]
[357191137,1743879033316,-500.0,0.00020987,2]
[357191138,1743879033330,-500.0,0.00020987,2]
[357191139,1743879033342,-500.0,0.00020987,2]
[357191140,1743879033353,-500.0,0.00020987,2]
[357191141,1743879033367,-500.0,0.00020987,2]
[357191142,1743879033379,-500.0,0.00020987,2]
[357191143,1743879033389,-500.0,0.00020987,2]
[357191144,1743879033400,-500.0,0.00020987,2]
[357191145,1743879033411,-228.7859752,0.0002099,2]
[357191146,1743879033423,-2009.98914772,0.00021,2]
[357191147,1743879033435,-228.7859752,0.00021178,2]
[357191148,1743879033446,-500.0,0.00021259,2]
[357191149,1743879033459,-500.0,0.00021259,2]
[357191150,1743879033471,-500.0,0.00021259,2]
[357191151,1743879033483,-500.0,0.00021259,2]
[357191152,1743879033496,-732.99,0.00021259,2]
[357191153,1743879033509,-500.0,0.00021259,2]
[357191154,1743879033522,-500.0,0.00021259,2]
[357191155,1743879033535,-500.0,0.00021259,2]
[357191156,1743879033547,-500.0,0.0002126,2]
[357191157,1743879033560,-500.0,0.0002126,2]
[357191158,1743879033573,-642.36,0.0002126,2]
[357191159,1743879033585,-500.0,0.0002126,2]
[357191160,1743879033598,-500.0,0.0002126,2]
[357191161,1743879033610,-500.0,0.00021261,2]
[357191162,1743879033620,-1341.21,0.00021261,2]
[357191163,1743879033631,-500.0,0.00021261,2]
[357191164,1743879033641,-500.0,0.00021261,2]
[357191165,1743879033651,-500.0,0.00021261,2]
[357191166,1743879033662,-500.0,0.00021261,2]
[357191167,1743879033673,-500.0,0.00021261,2]
[357191168,1743879033686,-447.01279689,0.00021261,2]
[357191169,1743879033698,-500.0,0.00021261,2]
[357191170,1743879033711,-500.0,0.00021261,2]
[357191171,1743879033724,-500.0,0.00021261,2]
[357191172,1743879033735,-500.0,0.00021261,2]
[357191173,1743879033745,-228.7859752,0.00021367,2]
[357191174,1743879033755,-420.0,0.00021367,2]
[357191175,1743879033766,-276.48,0.00021425,3]
[357191176,1743879033777,-829.45,0.00021425,3]
[357191177,1743879033788,-500.0,0.00021434,2]
[357191178,1743879033801,-391.56356371,0.00021434,2]
[357191179,1743879033814,-211625.02074563,0.00021435,2]
[357191180,1743879033825,-500.0,0.00021473,2]
[357191181,1743879033836,-500.0,0.00021473,2]
[357191182,1743879033846,-500.0,0.00021473,2]
[357191183,1743879033857,-500.0,0.00021473,2]
[357191184,1743879033868,-500.0,0.00021473,2]
[357191185,1743879033879,-500.0,0.00021473,2]
[357191186,1743879033890,-500.0,0.00021473,2]
[357191187,1743879033901,-500.0,0.00021473,2]
[357191188,1743879033915,-500.0,0.00021473,2]
[357191189,1743879033926,-500.0,0.00021473,2]
[357191190,1743879033938,-500.0,0.00021473,2]
[357191191,1743879033949,-500.0,0.00021473,2]
[357191192,1743879033961,-500.0,0.00021473,2]
[357191193,1743879033973,-500.0,0.00021473,2]
[357191194,1743879033985,-500.0,0.00021473,2]
[357191195,1743879033997,-500.0,0.00021533,2]
[357191196,1743879034009,-500.0,0.00021533,2]
[357191197,1743879034023,-500.0,0.00021533,2]
[357191198,1743879034035,-500.0,0.00021533,2]
[357191199,1743879034046,-732.99,0.00021533,2]
[357191200,1743879034058,-500.0,0.00021533,2]
[357191201,1743879034069,-500.0,0.00021533,2]
[357191202,1743879034081,-500.0,0.00021533,2]
[357191203,1743879034092,-500.0,0.00021534,2]
[357191204,1743879034104,-642.36,0.00021534,2]
[357191205,1743879034115,-500.0,0.00021534,2]
[357191206,1743879034127,-500.0,0.00021534,2]
[357191207,1743879034138,-1341.21,0.00021535,2]
[357191208,1743879034149,-500.0,0.00021535,2]
[357191209,1743879034160,-500.0,0.00021535,2]
[357191210,1743879034171,-500.0,0.00021535,2]
[357191211,1743879034183,-500.0,0.00021535,2]
[357191212,1743879034193,-500.0,0.00021535,2]
[357191213,1743879034204,-500.0,0.00021535,2]
[357191214,1743879034215,-500.0,0.00021535,2]
[357191215,1743879034226,-500.0,0.00021535,2]
[357191216,1743879034237,-500.0,0.00021535,2]
[357191217,1743879034248,-1992.5663015,0.00021555,3]
[357191218,1743879034259,-1000.0,0.00021681,5]
[357191219,1743879034270,-303.7117405,0.0002173,2]
[357191220,1743879034282,-500.0,0.00021807,2]
[357191221,1743879034293,-500.0,0.00021807,2]
[357191222,1743879034304,-500.0,0.00021807,2]
[357191223,1743879034316,-500.0,0.00021807,2]
[357191224,1743879034327,-732.99,0.00021807,2]
[357191225,1743879034339,-500.0,0.00021807,2]
[357191226,1743879034350,-500.0,0.00021807,2]
[357191227,1743879034361,-500.0,0.00021807,2]
[357191228,1743879034373,-500.0,0.00021808,2]
[357191229,1743879034384,-642.36,0.00021808,2]
[357191230,1743879034395,-238.5,0.00021808,2]
[357191231,1743879034406,-500.0,0.00021808,2]
[357191232,1743879034417,-1341.21,0.00021809,2]
[357191233,1743879034428,-500.0,0.00021809,2]
[357191234,1743879034438,-500.0,0.00021809,2]
[357191235,1743879034448,-500.0,0.00021809,2]
[357191236,1743879034459,-500.0,0.00021809,2]
[357191237,1743879034470,-500.0,0.00021809,2]
[357191238,1743879034627,-500.0,0.00021809,2]
[357191239,1743879034639,-500.0,0.00021809,2]
[357191240,1743879034649,-500.0,0.00021809,2]
[357191241,1743879034659,-500.0,0.00021809,2]
[357191242,1743879034670,-200.0,0.00021917,2]
[357191243,1743879034680,-153.0,0.00021918,2]
[357191244,1743879034690,-153.0,0.00021918,2]
[357191245,1743879034700,-153.0,0.00021918,2]
[357191246,1743879034709,-153.0,0.00021918,2]
[357191247,1743879034719,-153.0,0.00021918,2]
[357191248,1743879034729,-153.0,0.00021918,2]
[357191249,1743879034739,-153.0,0.00021918,2]
[357191250,1743879034749,-153.0,0.00021918,2]
[357191251,1743879034759,-153.0,0.00021918,2]
[357191252,1743879034769,-153.0,0.00021918,2]
[357191253,1743879034779,-153.0,0.00021918,2]
[357191254,1743879034789,-153.0,0.00021918,2]
[357191255,1743879034798,-153.0,0.00021918,2]
[357191256,1743879034808,-153.0,0.00021918,2]
[357191257,1743879034817,-153.0,0.00021918,2]
[357191258,1743879034827,-153.0,0.00021918,2]
[357191259,1743879034837,-153.0,0.00021918,2]
[357191260,1743879034847,-153.0,0.00021918,2]
[357191261,1743879034857,-153.0,0.00021918,2]
[357191262,1743879034867,-153.0,0.00021918,2]
[357191263,1743879034876,-153.0,0.00021918,2]
[357191264,1743879034886,-153.0,0.00021918,2]
[357191265,1743879034895,-153.0,0.00021918,2]
[357191266,1743879034905,-153.0,0.00021918,2]
[357191267,1743879034919,-153.0,0.00021918,2]
[357191268,1743879034930,-153.0,0.00021918,2]
[357191269,1743879034941,-153.0,0.00021918,2]
[357191270,1743879034951,-153.0,0.00021918,2]
[357191271,1743879034960,-153.0,0.00021918,2]
[357191272,1743879034969,-153.0,0.00021918,2]
[357191273,1743879034979,-210.7599518,0.00021918,2]
[357191274,1743879034991,-500.0,0.00022081,2]
[357191275,1743879035002,-500.0,0.00022081,2]
[357191276,1743879035011,-732.99,0.00022081,2]
[357191277,1743879035021,-500.0,0.00022081,2]
[357191278,1743879035031,-500.0,0.00022081,2]
[357191279,1743879035042,-500.0,0.00022082,2]
[357191280,1743879035052,-642.36,0.00022082,2]
[357191281,1743879035062,-500.0,0.00022082,2]
[357191282,1743879035072,-1341.21,0.00022083,2]
[357191283,1743879035081,-500.0,0.00022083,2]
[357191284,1743879035090,-500.0,0.00022083,2]
[357191285,1743879035100,-500.0,0.00022083,2]
[357191286,1743879035109,-500.0,0.00022083,2]
[357191287,1743879035118,-500.0,0.00022083,2]
[357191288,1743879035128,-500.0,0.00022083,2]
[357191289,1743879035137,-500.0,0.00022083,2]
[357191290,1743879035147,-500.0,0.00022083,2]
[357191291,1743879035156,-1992.5663015,0.0002221,3]
[357191292,1743879035166,-830.68634946,0.00022341,2]
[357191293,1743879035176,-207.4,0.00022343,2]
[357191294,1743879035185,-500.0,0.00022355,2]
[357191295,1743879035194,-500.0,0.00022355,2]
[357191296,1743879035203,-732.99,0.00022355,2]
[357191297,1743879035213,-500.0,0.00022355,2]
[357191298,1743879035223,-500.0,0.00022355,2]
[357191299,1743879035234,-500.0,0.00022356,2]
[357191300,1743879035243,-642.36,0.00022356,2]
[357191301,1743879035253,-500.0,0.00022356,2]
[357191302,1743879035263,-1341.21,0.00022357,2]
[357191303,1743879035273,-470.96,0.00022357,2]
[357191304,1743879035282,-500.0,0.00022357,2]
[357191305,1743879035292,-500.0,0.00022357,2]
[357191306,1743879035302,-500.0,0.00022357,2]
[357191307,1743879035312,-500.0,0.00022357,2]
[357191308,1743879035322,-151.0,0.00022402,2]
[357191309,1743879035331,-1200.0,0.00022568,2]
[357191310,1743879035341,-476.7,0.00022629,2]
[357191311,1743879035352,-500.0,0.00022629,2]
[357191312,1743879035361,-732.99,0.00022629,2]
[357191313,1743879035372,-500.0,0.00022629,2]
[357191314,1743879035382,-500.0,0.00022629,2]
[357191315,1743879035391,-346.43823554,0.0002263,3]
[357191316,1743879035401,-2110.43480612,0.0002263,3]
[357191317,1743879035412,-500.0,0.0002263,2]
[357191318,1743879035422,-642.36,0.0002263,2]
[357191319,1743879035435,-500.0,0.0002263,2]
[357191320,1743879035445,-1341.21,0.00022631,2]
[357191321,1743879035454,-500.0,0.00022631,2]
[357191322,1743879035464,-500.0,0.00022631,2]
[357191323,1743879035473,-500.0,0.00022631,2]
[357191324,1743879035484,-500.0,0.00022631,2]
[357191325,1743879035494,-357.0,0.00022648,3]
[357191326,1743879035504,-357.0,0.00022648,3]
[357191327,1743879035514,-552.96,0.00022795,3]
[357191328,1743879035524,-500.0,0.00022834,7]
[357191329,1743879035534,-500.0,0.00022861,7]
[357191330,1743879035547,-1992.5663015,0.00022866,4]
[357191331,1743879035557,-956.86253632,0.00022889,7]
[357191332,1743879035566,-2000.0,0.000229,3]
[357191333,1743879035576,-1537.0,0.000229,3]
[357191334,1743879035585,-2000.0,0.000229,3]
[357191335,1743879035595,-2000.0,0.000229,3]
[357191336,1743879035604,-2000.0,0.000229,3]
[357191337,1743879035613,-2000.0,0.000229,3]
[357191338,1743879035622,-2000.0,0.000229,5]
[357191339,1743879035632,-500.0,0.00022903,2]
[357191340,1743879035641,-732.99,0.00022903,2]
[357191341,1743879035651,-500.0,0.00022903,2]
[357191342,1743879035661,-500.0,0.00022903,2]
[357191343,1743879035671,-500.0,0.00022904,2]
[357191344,1743879035680,-642.36,0.00022904,2]
[357191345,1743879035690,-1341.21,0.00022905,2]
[357191346,1743879035699,-500.0,0.00022905,2]
[357191347,1743879035709,-500.0,0.00022905,2]
[357191348,1743879035719,-10559.9745369,0.00022934,2]
[357191349,1743879035730,-2000.0,0.00023,3]
[357191350,1743879035739,-2000.0,0.00023,3]
[357191351,1743879035749,-2000.0,0.00023,3]
[357191352,1743879035758,-2000.0,0.00023,3]
[357191353,1743879035768,-2000.0,0.00023,3]
[357191354,1743879035777,-2000.0,0.00023,3]
[357191355,1743879035786,-2000.0,0.00023,3]
[357191356,1743879035796,-2000.0,0.00023,3]